fUSD/lending_fUSD_20251201
["ID","MTS","AMOUNT","RATE_DAILY","PERIOD"]
[395323845,1764625841869,-500.0,0.00014347,2]
[395323846,1764625841879,-500.0,0.00014347,2]
[395323847,1764625841888,-10176.875891,0.00014352,2]
[395323848,1764625841898,-866.34,0.00014447,2]
[395323849,1764625841907,-220.7,0.00014503,2]
[395323850,1764625841917,-1457.89,0.00014504,2]
[395323851,1764625841926,-264.05,0.00014504,2]
[395323852,1764625841935,-9999.99,0.00014504,2]
[395323853,1764625841944,-1149.8,0.00014504,2]
[395323854,1764625841954,-3155.89,0.00014504,2]
[395323855,1764625841963,-150.99,0.00014504,2]
[395323856,1764625841973,-299.99,0.00014504,2]
[395323857,1764625841982,-150.99,0.00014504,2]
[395323858,1764625841991,-9999.99,0.00014504,2]
[395323859,1764625842001,-1152.98,0.00014521,2]
[395323860,1764625842010,-151.0,0.00014521,2]
[395323861,1764625842019,-195.0,0.00014529,2]
[395323862,1764625842030,-195.0,0.00014529,2]
[395323863,1764625842039,-195.0,0.00014638,2]
[395323864,1764625842049,-1808.51743818,0.00014661,2]
[395323865,1764625842059,-10176.875891,0.00014671,2]
[395323866,1764625842068,-195.0,0.00014713,2]
[395323867,1764625842077,-866.34,0.00014721,2]
[395323868,1764625842087,-500.0,0.00014774,2]
[395323869,1764625842096,-500.0,0.00014774,2]
[395323870,1764625842111,-500.0,0.00014774,2]
[395323871,1764625842121,-500.0,0.00014774,2]
[395323872,1764625842131,-500.0,0.00014787,2]
[395323873,1764625842140,-200.0,0.00014787,2]
[395323874,1764625842150,-200.0,0.00014787,2]
[395323875,1764625842160,-195.0,0.00014804,2]
[395323876,1764625842169,-420.0,0.00014826,2]
[395323877,1764625842179,-420.0,0.00014826,2]
[395323878,1764625842188,-535.68,0.00014877,2]
[395323879,1764625842197,-1680.0,0.00014879,2]
[395323880,1764625842207,-174.36,0.00014909,2]
[395323881,1764625842216,-10176.875891,0.00014989,2]
[395323882,1764625842225,-866.34,0.00014995,2]
[395323883,1764625842234,-398.70530571,0.0001502,2]
[395323884,1764625842244,-151.0,0.00015069,2]
[395323885,1764625842254,-255.0,0.00015116,2]
[395323886,1764625842263,-1000.0,0.00015148,2]
[395323889,1764625842273,-866.34,0.00015269,2]
[395323891,1764625842283,-150.0,0.00015288,2]
[395323893,1764625842297,-150.00000001,0.00015288,2]
[395323896,1764625842309,-150.0,0.00015288,2]
[395323898,1764625842326,-150.0,0.00015288,2]
[395323899,1764625842336,-150.0,0.00015288,2]
[395323900,1764625842346,-150.0,0.00015288,2]
[395323901,1764625842356,-150.0,0.00015288,2]
[395323902,1764625842368,-150.0,0.00015288,2]
[395323903,1764625842378,-150.0,0.00015288,2]
[395323905,1764625842388,-150.0,0.00015288,2]
[395323907,1764625842399,-150.0,0.00015288,2]
[395323910,1764625842409,-150.0,0.00015288,2]
[395323913,1764625842418,-150.0,0.00015288,2]
[395323916,1764625842427,-150.0,0.00015288,2]
[395323918,1764625842439,-150.0,0.00015288,2]
[395323920,1764625842448,-150.0,0.00015288,2]
[395323922,1764625842458,-10176.875891,0.00015308,2]
[395323924,1764625842468,-264.0,0.00015315,2]
[395323926,1764625842478,-150.0,0.0001533,2]
[395323928,1764625842488,-200.0,0.00015335,2]
[395323930,1764625842498,-500.0,0.00015335,2]
[395323934,1764625842508,-200.0,0.00015335,2]
[395323938,1764625842518,-150.0,0.00015346,2]
[395323939,1764625842527,-150.0,0.00015369,2]
[395323940,1764625842538,-150.0,0.00015373,2]
[395323941,1764625842548,-150.0,0.00015377,2]
[395323942,1764625842559,-150.0,0.00015382,2]
[395323943,1764625842569,-150.0,0.00015405,2]
[395323944,1764625842579,-150.0,0.00015409,2]
[395323945,1764625842589,-150.0,0.00015415,2]
[395323946,1764625842598,-150.0,0.00015429,2]
[395323947,1764625842607,-150.0,0.00015449,2]
[395323948,1764625842617,-150.0,0.00015458,2]
[395323949,1764625842628,-150.0,0.00015463,2]
[395323950,1764625842637,-150.0,0.00015466,2]
[395323951,1764625842647,-150.0,0.00015476,2]
[395323952,1764625842656,-174.36,0.00015477,2]
[395323953,1764625842666,-150.0,0.000155,2]
[395323954,1764625842676,-150.0,0.000155,2]
[395323955,1764625842686,-150.0,0.00015522,2]
[395323956,1764625842695,-150.0,0.0001553,2]
[395323957,1764625842705,-150.0,0.0001553,2]
[395323958,1764625842715,-150.0,0.0001553,2]
[395323959,1764625842724,-150.0,0.00015542,2]
[395323960,1764625842734,-866.34,0.00015543,2]
[395323961,1764625842743,-150.0,0.00015556,2]
[395323962,1764625842753,-150.0,0.00015571,2]
[395323963,1764625842763,-150.0,0.00015571,2]
[395323964,1764625842773,-150.0,0.00015571,2]
[395323965,1764625842783,-150.0,0.00015581,2]
[395323966,1764625842792,-150.0,0.00015585,2]
[395323967,1764625842802,-150.0,0.00015611,2]
[395323968,1764625842812,-151.0,0.00015617,2]
[395323969,1764625842821,-250.0,0.00015625,2]
[395323970,1764625842831,-10176.875891,0.00015626,2]
[395323971,1764625842841,-150.0,0.00015627,2]
[395323972,1764625842850,-150.0,0.00015639,2]
[395323973,1764625842860,-150.0,0.00015645,2]
[395323974,1764625842870,-1553.0,0.00015646,2]
[395323975,1764625842880,-150.0,0.00015652,2]
[395323976,1764625842890,-150.0,0.00015665,2]
[395323977,1764625842900,-150.0,0.0001567,2]
[395323979,1764625842909,-18929.94747361,0.00015677,2]
[395323981,1764625842919,-1562.0,0.00015677,2]
[395323983,1764625842929,-150.0,0.00015692,2]
[395323984,1764625842939,-150.0,0.00015698,2]
[395323985,1764625842948,-150.0,0.00015712,2]
[395323986,1764625842958,-150.0,0.00015712,2]
[395323987,1764625842968,-150.0,0.00015712,2]
[395323988,1764625842978,-150.0,0.00015712,2]
[395323989,1764625842988,-150.0,0.00015735,2]
[395323990,1764625842997,-150.0,0.00015755,2]
[395323991,1764625843007,-150.0,0.00015756,2]
[395323992,1764625843017,-150.0,0.0001576,2]
[395323994,1764625843027,-150.0,0.00015773,2]
[395323996,1764625843036,-150.0,0.00015773,2]
[395323997,1764625843046,-150.0,0.00015773,2]
[395323998,1764625843055,-150.0,0.00015797,2]
[395323999,1764625843065,-150.0,0.00015815,2]
[395324000,1764625843075,-866.34,0.00015817,2]
[395324002,1764625843085,-150.0,0.00015824,2]
[395324004,1764625843094,-150.0,0.0001584,2]
[395324006,1764625843104,-150.0,0.00015854,2]
[395324007,1764625843114,-150.0,0.00015854,2]
[395324008,1764625843124,-150.0,0.00015854,2]
[395324009,1764625843134,-150.0,0.00015854,2]
[395324010,1764625843143,-150.0,0.00015873,2]
[395324011,1764625843153,-150.0,0.00015882,2]
[395324012,1764625843163,-200.0,0.00015883,2]
[395324013,1764625843173,-500.0,0.00015883,2]
[395324014,1764625843182,-200.0,0.00015883,2]
[395324015,1764625843192,-398.70530571,0.00015891,2]
[395324016,1764625843201,-150.0,0.00015894,2]
[395324017,1764625843211,-315.88349156,0.000159,2]
[395324018,1764625843220,-315.88349156,0.000159,2]
[395324019,1764625843230,-315.88349156,0.000159,2]
[395324020,1764625843240,-1000.0,0.00015901,2]
[395324021,1764625843249,-150.0,0.00015913,2]
[395324022,1764625843259,-150.0,0.00015925,2]
[395324023,1764625843268,-150.0,0.00015925,2]
[395324024,1764625843278,-150.0,0.00015932,2]
[395324025,1764625843288,-150.0,0.00015935,2]
[395324026,1764625843297,-10176.875891,0.00015945,2]
[395324027,1764625843308,-150.0,0.00015948,2]
[395324028,1764625843317,-150.0,0.00015967,2]
[395324029,1764625843327,-18929.94747361,0.00015983,2]
[395324030,1764625843337,-150.0,0.00015991,2]
[395324031,1764625843347,-150.0,0.00015995,2]
[395324032,1764625843357,-151.0,0.00015997,2]
[395324033,1764625843369,-161.6911003,0.00015999,2]
[395324034,1764625843380,-894.9886992,0.00015999,2]
[395324035,1764625843391,-12604.3107313,0.00015999,2]
[395324036,1764625843401,-500.0,0.00015999,2]
[395324037,1764625843411,-150.89015,0.00015999,2]
[395324038,1764625843421,-500.0,0.00015999,2]
[395324039,1764625843431,-2684.9660974,0.00015999,2]
[395324040,1764625843441,-323.3822006,0.00015999,2]
[395324041,1764625843450,-500.0,0.00015999,2]
[395324042,1764625843459,-112272.25376498,0.00016,4]
[395324043,1764625843469,-150.0,0.00016003,2]
[395324044,1764625843478,-150.0,0.0001601,2]
[395324045,1764625843488,-150.0,0.00016016,2]
[395324046,1764625843497,-150.0,0.00016016,2]
[395324047,1764625843507,-150.0,0.00016016,2]
[395324048,1764625843517,-150.0,0.00016043,2]
[395324049,1764625843527,-174.36,0.00016045,2]
[395324050,1764625843537,-150.0,0.00016049,2]
[395324051,1764625843546,-150.0,0.00016052,2]
[395324052,1764625843556,-2008.61999376,0.00016087,2]
[395324053,1764625843566,-866.34,0.00016091,2]
[395324054,1764625843575,-150.0,0.00016092,2]
[395324055,1764625843584,-150.0,0.00016095,2]
[395324056,1764625843594,-150.0,0.00016097,2]
[395324057,1764625843603,-150.0,0.00016108,2]
[395324058,1764625843613,-150.0,0.00016137,2]
[395324059,1764625843623,-150.0,0.00016137,2]
[395324060,1764625843633,-150.0,0.00016137,2]
[395324061,1764625843643,-150.0,0.00016137,2]
[395324062,1764625843653,-150.0,0.00016137,2]
[395324063,1764625843662,-150.0,0.00016137,2]
[395324064,1764625843672,-150.0,0.00016137,2]
[395324065,1764625843682,-150.0,0.00016137,2]
[395324066,1764625843692,-150.0,0.00016137,2]
[395324067,1764625843701,-150.0,0.00016137,2]
[395324068,1764625843711,-151.0,0.00016165,2]
[395324069,1764625843721,-150.0,0.00016166,2]
[395324070,1764625843731,-150.0,0.00016177,2]
[395324071,1764625843740,-150.0,0.00016179,2]
[395324072,1764625843749,-150.0,0.00016182,2]
[395324073,1764625843759,-5000.00810117,0.000162,5]
[395324074,1764625843769,-150.0,0.00016222,2]
[395324075,1764625843779,-150.0,0.00016225,2]
[395324076,1764625843788,-150.0,0.00016231,2]
[395324077,1764625843797,-587.0,0.0001625,2]
[395324078,1764625843807,-587.0,0.0001625,2]
[395324079,1764625843817,-150.0,0.00016258,2]
[395324080,1764625843826,-150.0,0.00016258,2]
[395324081,1764625843836,-150.0,0.00016258,2]
[395324082,1764625843846,-10176.875891,0.00016263,2]
[395324083,1764625843855,-150.0,0.00016264,2]
[395324084,1764625843865,-150.0,0.00016271,2]
[395324085,1764625843875,-150.0,0.00016279,2]
[395324086,1764625843885,-150.0,0.00016283,2]
[395324087,1764625843895,-18929.94747361,0.00016288,2]
[395324088,1764625843905,-313.03,0.00016301,2]
[395324089,1764625843915,-150.0,0.00016307,2]
[395324090,1764625843925,-433.0,0.00016319,2]
[395324091,1764625843935,-150.0,0.00016326,2]
[395324092,1764625843944,-1152.98,0.00016336,2]
[395324093,1764625843954,-150.0,0.00016339,2]
[395324094,1764625843963,-150.0,0.00016342,2]
[395324095,1764625843972,-150.0,0.00016349,2]
[395324096,1764625843982,-150.0,0.00016349,2]
[395324097,1764625843992,-150.0,0.0001636,2]
[395324098,1764625844002,-866.34,0.00016365,2]
[395324099,1764625844011,-2351.0,0.00016366,2]
[395324100,1764625844021,-150.0,0.0001638,2]
[395324101,1764625844030,-168.92,0.00016391,2]
[395324102,1764625844040,-150.0,0.00016392,2]
[395324103,1764625844050,-150.0,0.00016401,2]
[395324104,1764625844059,-150.0,0.0001642,2]
[395324105,1764625844070,-150.0,0.0001642,2]
[395324106,1764625844079,-150.0,0.0001642,2]
[395324107,1764625844089,-150.0,0.0001642,2]
[395324108,1764625844099,-200.0,0.00016431,2]
[395324109,1764625844108,-500.0,0.00016431,2]
[395324110,1764625844118,-200.0,0.00016431,2]
[395324111,1764625844128,-150.0,0.00016434,2]
[395324112,1764625844137,-500.0,0.00016438,2]
[395324113,1764625844147,-500.0,0.00016438,2]
[395324114,1764625844156,-6314.64,0.00016438,2]
[395324115,1764625844166,-5369.57,0.00016438,2]
[395324116,1764625844176,-48597.38,0.00016438,2]
[395324117,1764625844186,-800.0,0.00016438,2]
[395324118,1764625844196,-150.0,0.0001645,2]
[395324119,1764625844205,-150.0,0.00016459,2]
[395324120,1764625844215,-220.7,0.00016474,2]
[395324121,1764625844225,-150.0,0.00016477,2]
[395324122,1764625844234,-150.0,0.00016501,2]
[395324123,1764625844244,-150.0,0.00016501,2]
[395324124,1764625844254,-150.0,0.00016501,2]
[395324125,1764625844264,-150.0,0.00016514,2]
[395324126,1764625844274,-150.0,0.00016518,2]
[395324127,1764625844283,-150.0,0.00016519,2]
[395324128,1764625844293,-150.0,0.00016539,2]
[395324129,1764625844302,-150.0,0.00016562,2]
[395324130,1764625844312,-150.0,0.00016562,2]
[395324131,1764625844321,-150.0,0.00016562,2]
[395324132,1764625844330,-150.0,0.00016562,2]
[395324133,1764625844340,-150.0,0.00016576,2]
[395324134,1764625844349,-500.0,0.0001658,2]
[395324135,1764625844360,-10176.875891,0.00016582,2]
[395324136,1764625844370,-150.0,0.00016582,2]
[395324137,1764625844381,-18929.94747361,0.00016594,2]
[395324138,1764625844390,-150.0,0.00016604,2]
[395324139,1764625844402,-150.0,0.00016609,2]
[395324140,1764625844411,-150.0,0.00016622,2]
[395324141,1764625844421,-150.0,0.00016629,2]
[395324142,1764625844431,-150.0,0.00016635,2]
[395324143,1764625844444,-866.34,0.00016639,2]
[395324144,1764625844454,-150.0,0.00016647,2]
[395324145,1764625844463,-150.0,0.00016663,2]
[395324146,1764625844473,-397.1393298,0.00016681,2]
[395324147,1764625844483,-150.0,0.00016689,2]
[395324148,1764625844493,-150.0,0.00016693,2]
[395324149,1764625844503,-150.0,0.00016703,2]
[395324150,1764625844513,-150.0,0.00016703,2]
[395324151,1764625844523,-150.0,0.00016703,2]
[395324152,1764625844533,-176.08,0.00016712,2]
[395324153,1764625844542,-151.0,0.00016713,2]
[395324154,1764625844551,-150.0,0.00016718,2]
[395324155,1764625844561,-150.0,0.00016732,2]
[395324156,1764625844571,-150.0,0.00016744,2]
[395324157,1764625844581,-150.0,0.00016744,2]
[395324158,1764625844591,-150.0,0.00016744,2]
[395324159,1764625844600,-150.0,0.00016752,2]
[395324160,1764625844610,-150.0,0.00016774,2]
[395324161,1764625844619,-150.0,0.00016774,2]
[395324162,1764625844629,-150.0,0.00016798,2]
[395324163,1764625844639,-150.0,0.00016807,2]
[395324164,1764625844648,-150.0,0.00016811,2]
[395324165,1764625844658,-150.0,0.00016816,2]
[395324166,1764625844667,-150.0,0.00016825,2]
[395324167,1764625844676,-150.0,0.00016845,2]
[395324168,1764625844686,-150.0,0.00016859,2]
[395324169,1764625844695,-150.0,0.00016865,2]
[395324170,1764625844704,-150.0,0.00016869,2]
[395324171,1764625844714,-150.0,0.00016892,2]
[395324172,1764625844723,-150.0,0.00016897,2]
[395324173,1764625844732,-18929.94747361,0.000169,2]
[395324174,1764625844742,-10176.875891,0.000169,2]
[395324175,1764625844751,-643.9743387,0.000169,2]
[395324176,1764625844761,-1383.40953355,0.000169,2]
[395324177,1764625844770,-363.24943434,0.000169,2]
[395324178,1764625844779,-3636.82447299,0.000169,2]
[395324179,1764625844789,-150.0,0.00016901,2]
[395324180,1764625844799,-150.0,0.00016905,2]
[395324181,1764625844808,-866.4,0.00016913,2]
[395324182,1764625844818,-150.0,0.00016928,2]
[395324183,1764625844827,-150.0,0.00016944,2]
[395324184,1764625844837,-162.69006403,0.00016973,2]
[395324185,1764625844846,-500.0,0.00016973,2]
[395324186,1764625844856,-500.0,0.00016973,2]
[395324187,1764625844866,-500.0,0.00016973,2]
[395324188,1764625844876,-300.85730487,0.00016973,2]
[395324189,1764625844886,-500.0,0.00016973,2]
[395324190,1764625844896,-500.0,0.00016973,2]
[395324191,1764625844905,-500.0,0.00016973,2]
[395324192,1764625844914,-500.0,0.00016973,2]
[395324193,1764625844924,-159.45765875,0.00016973,2]
[395324194,1764625844934,-500.0,0.00016973,2]
[395324195,1764625844944,-500.0,0.00016973,2]
[395324196,1764625844953,-500.0,0.00016973,2]
[395324197,1764625844963,-500.0,0.00016973,2]
[395324198,1764625844972,-500.0,0.00016973,2]
[395324199,1764625844982,-500.0,0.00016973,2]
[395324200,1764625844991,-233.06885898,0.00016973,2]
[395324201,1764625845000,-500.0,0.00016973,2]
[395324202,1764625845010,-500.0,0.00016973,2]
[395324203,1764625845019,-500.0,0.00016973,2]
[395324204,1764625845029,-500.0,0.00016973,2]
[395324205,1764625845039,-201.14127779,0.00016973,2]
[395324206,1764625845048,-162.47379321,0.00016973,2]
[395324207,1764625845057,-500.0,0.00016973,2]
[395324208,1764625845067,-500.0,0.00016973,2]
[395324209,1764625845077,-500.0,0.00016973,2]
[395324210,1764625845086,-500.0,0.00016973,2]
[395324211,1764625845096,-207.4,0.00016978,2]
[395324212,1764625845105,-200.0,0.00016979,2]
[395324213,1764625845115,-500.0,0.00016979,2]
[395324214,1764625845126,-200.0,0.00016979,2]
[395324215,1764625845136,-15940.0,0.00016986,2]
[395324216,1764625845146,-1716.0,0.00016986,2]
[395324217,1764625845156,-150.0,0.00016986,2]
[395324218,1764625845166,-159.02910351,0.00016986,2]
[395324219,1764625845176,-150.0,0.00016986,2]
[395324220,1764625845187,-224.56558135,0.00016986,2]
[395324221,1764625845197,-238.95743324,0.00016986,2]
[395324222,1764625845207,-260.76603447,0.00016986,2]
[395324223,1764625845217,-150.0,0.00016986,2]
[395324224,1764625845227,-150.0,0.00016986,2]
[395324225,1764625845238,-150.63510213,0.00016986,2]
[395324226,1764625845248,-150.00000001,0.00016986,2]
[395324227,1764625845258,-154.6279571,0.00016986,2]
[395324228,1764625845267,-150.0,0.00016986,2]
[395324229,1764625845277,-150.0,0.00016986,2]
[395324230,1764625845288,-168.22944719,0.00016986,2]
[395324231,1764625845298,-500.0,0.00016989,2]
[395324232,1764625845307,-500.0,0.00016989,2]
[395324233,1764625845611,-1808.51743818,0.0001699,2]
[395324234,1764625845651,-1808.51743818,0.0001699,2]
[395324235,1764625845661,-151.0,0.00016997,2]
[395324236,1764625845671,-411.9192268,0.00016999,2]
[395324237,1764625845681,-567.14160979,0.00016999,2]
[395324238,1764625845690,-551.31714779,0.00016999,2]
[395324239,1764625845700,-517.36111586,0.00016999,2]
[395324240,1764625845709,-500.0,0.00016999,2]
[395324241,1764625845719,-500.0,0.00016999,2]
[395324242,1764625845728,-300.0,0.00016999,2]
[395324243,1764625845738,-300.0,0.00016999,2]
[395324244,1764625845748,-300.0,0.00016999,2]
[395324245,1764625845758,-292.78050892,0.00016999,2]
[395324246,1764625845767,-500.0,0.00016999,2]
[395324247,1764625845777,-250.0,0.00017,2]
[395324248,1764625845787,-2091767.70878605,0.00017,2]
[395324249,1764625845796,-3765065.81739486,0.00017,2]
[395324250,1764625845806,-1000.0,0.00017,2]
[395324251,1764625845816,-151.0,0.00017,2]
[395324253,1764625845826,-151.0,0.00017,2]
[395324254,1764625845836,-201.11287879,0.00017,2]
[395324255,1764625845845,-151.0,0.00017,2]
[395324256,1764625845855,-250.91363,0.00017,2]
[395324257,1764625845865,-171.488333,0.00017,2]
[395324258,1764625845875,-171.488333,0.00017,2]
[395324259,1764625845884,-171.488333,0.00017,2]
[395324261,1764625845894,-171.488333,0.00017,2]
[395324262,1764625845904,-220.7,0.0001725,2]
[395324263,1764625845913,-151.0,0.00017261,2]
[395324264,1764625845923,-268.0,0.00017283,2]
[395324265,1764625845932,-1000.0,0.00017521,2]
[395324266,1764625845943,-200.0,0.00017527,2]
[395324267,1764625845952,-500.0,0.00017527,2]
[395324268,1764625845962,-200.0,0.00017527,2]
[395324269,1764625845972,-736.0,0.00017635,2]
[395324270,1764625845982,-166.66,0.00017667,2]
[395324271,1764625845991,-1000.0,0.00017667,2]
[395324272,1764625846001,-500.0,0.00017772,2]
[395324273,1764625846011,-437.91877358,0.00017773,2]
[395324274,1764625846021,-500.0,0.00017773,2]
[395324275,1764625846032,-500.0,0.00017773,2]
[395324276,1764625846042,-500.0,0.00017773,2]
[395324277,1764625846052,-160.03289921,0.00017773,2]
[395324278,1764625846062,-500.0,0.00017773,2]
[395324279,1764625846072,-595.75018119,0.00017773,2]
[395324280,1764625846082,-500.0,0.00017773,2]
[395324281,1764625846092,-500.0,0.00017773,2]
[395324282,1764625846102,-500.0,0.00017773,2]
[395324283,1764625846112,-500.0,0.00017773,2]
[395324284,1764625846122,-500.0,0.00017773,2]
[395324285,1764625846132,-500.0,0.00017773,2]
[395324286,1764625846141,-506.88790336,0.00017773,2]
[395324287,1764625846152,-500.0,0.00017773,2]
[395324288,1764625846162,-500.0,0.00017773,2]
[395324289,1764625846171,-217.00327303,0.00017773,2]
[395324290,1764625846181,-500.0,0.00017773,2]
[395324291,1764625846191,-500.0,0.00017773,2]
[395324292,1764625846200,-500.0,0.00017773,2]
[395324293,1764625846210,-180.0,0.00017811,2]
[395324294,1764625846220,-180.0,0.00017811,2]
[395324295,1764625846230,-150.89016,0.00017999,2]
[395324296,1764625846239,-3292.0,0.00018003,2]
[395324297,1764625846248,-2812.401872,0.00018025,2]
[395324298,1764625846258,-168.92,0.0001803,2]
[395324299,1764625846268,-371.11170021,0.00018068,2]
[395324300,1764625846278,-500.0,0.00018075,2]
[395324301,1764625846288,-200.0,0.00018075,2]
[395324302,1764625846297,-1000.0,0.00018082,2]
[395324303,1764625846307,-1152.98,0.00018151,2]
[395324304,1764625846316,-166.66,0.0001825,2]
[395324305,1764625846325,-500.0,0.00018309,2]
[395324306,1764625846335,-464.30302613,0.00018309,2]
[395324307,1764625846345,-500.0,0.00018309,2]
[395324308,1764625846355,-500.0,0.00018309,2]
[395324309,1764625846369,-559.01212268,0.00018309,2]
[395324310,1764625846379,-500.0,0.00018309,2]
[395324311,1764625846389,-500.0,0.00018309,2]
[395324312,1764625846401,-627.5316801,0.00018478,2]
[395324313,1764625846410,-1000.0,0.0001876,2]
[395324314,1764625846420,-166.66,0.00018833,2]
[395324315,1764625846430,-205.36370991,0.00019,2]
[395324316,1764625846441,-300.0,0.00019,2]
[395324317,1764625846450,-5282.73853159,0.00019,2]
[395324318,1764625846460,-183.27512278,0.00019,2]
[395324319,1764625846469,-1536.95,0.00019002,2]
[395324320,1764625846479,-603.0,0.00019035,2]
[395324321,1764625846488,-294.27,0.00019197,2]
[395324322,1764625846498,-166.66,0.00019416,2]
[395324323,1764625846508,-1000.0,0.00019434,2]
[395324324,1764625846517,-1000.0,0.00019438,2]
[395324325,1764625846527,-168.92,0.00019669,2]
[395324326,1764625846537,-192.6,0.00019717,2]
[395324327,1764625846547,-1654.0,0.00019803,2]
[395324328,1764625846557,-1152.98,0.00019966,2]
[395324329,1764625846567,-150.89016,0.00019999,2]
[395324330,1764625846577,-166.66,0.00019999,2]
[395324331,1764625846586,-1000.0,0.00020116,2]
[395324332,1764625846595,-500.74,0.00020187,2]
[395324333,1764625846605,-166.66,0.00020582,2]
[395324334,1764625846615,-1000.0,0.000207,2]
[395324335,1764625846624,-1000.0,0.00020795,2]
[395324336,1764625846634,-170.15700211,0.00020959,2]
[395324337,1764625846643,-350.0,0.00021,2]
[395324338,1764625846653,-1000.0,0.00021201,2]
[395324339,1764625846662,-168.92,0.00021308,2]
[395324340,1764625846671,-7071.92961817,0.000215,2]
[395324341,1764625846681,-1152.98,0.00021781,2]
[395324342,1764625846691,-1383.40953354,0.00021798,2]
[395324343,1764625846700,-5000.0,0.00021918,2]
[395324344,1764625846710,-150.0,0.00021918,2]
[395324345,1764625846719,-150.89016,0.00021999,2]
[395324346,1764625846729,-274.32,0.00022,7]
[395324347,1764625846739,-150.0,0.00022329,2]
[395324348,1764625846748,-6515.0,0.00022402,2]
[395324349,1764625846758,-156.24154383,0.00022651,2]
[395324350,1764625846768,-150.0,0.0002274,2]
[395324351,1764625846778,-168.92,0.00022947,2]
[395324352,1764625846788,-150.0,0.00023151,2]
[395324353,1764625846798,-150.0,0.00023562,2]
[395324354,1764625846808,-150.0,0.00023973,2]
[395324355,1764625846818,-150.0,0.00024384,2]
[395324356,1764625846827,-168.92,0.00024586,2]
[395324357,1764625846837,-243.12,0.00024658,2]
[395324358,1764625846847,-151.0,0.00024658,2]
[395324359,1764625846857,-1000.0,0.00024658,2]
[395324360,1764625846867,-151.37,0.00024658,30]
[395324361,1764625846878,-150.0,0.00024795,2]
[395324362,1764625846888,-274.32,0.000248,7]
[395324363,1764625846898,-150.0,0.00025205,2]
[395324364,1764625846908,-150.0,0.00025616,2]
[395324365,1764625846918,-150.0,0.00026027,2]
[395324366,1764625846928,-150.0,0.00026438,2]
[395324367,1764625846938,-500.74,0.00026676,2]
[395324368,1764625846948,-1383.40953354,0.00026696,2]
[395324369,1764625846958,-150.0,0.00026849,2]
[395324370,1764625846967,-1603.0,0.00026933,2]
[395324371,1764625846977,-609.0,0.00026933,2]
[395324372,1764625846987,-640.0,0.00026933,2]
[395324373,1764625846996,-1800.453,0.00026933,2]
[395324374,1764625847006,-254.64,0.00026933,2]
[395324375,1764625847016,-6507.0,0.00026933,2]
[395324376,1764625847026,-150.0,0.0002726,2]
[395324377,1764625847036,-274.32,0.000273,7]
[395324378,1764625847045,-150.0,0.00027369,2]
[395324379,1764625847055,-1434.72,0.00027397,2]
[395324380,1764625847065,-300.0,0.00027397,2]
[395324381,1764625847075,-500.0,0.00027397,14]
[395324382,1764625847084,-312.032951,0.00027397,7]